Workbook

Sheet Sorted Reduced FINAL
A1: proj_id | B1: pi | C1: kst | D1: GPU | E1: req_nodeh | F1: req_TB | G1: prc_Q1 | H1: prc_Q2 | I1: prc_Q3 | J1: prc_Q4 | K1: nh_Q1 | L1: nh_Q2 | M1: nh_Q3 | N1: nh_Q4 | O1: Email Address
A2: psi | B2: Caubet Serrabou Marc | C2: 7905 | D2: 0 | E2: =10000+2250 -> 12250 | F2: 9 | G2: 0.25 | H2: 0.25 | I2: 0.25 | J2: 0.25 | K2: =E2*G2 -> 3062.5 | L2: =E2*H2 -> 3062.5 | M2: =E2*I2 -> 3062.5 | N2: =E2*J2 -> 3062.5 | O2: marc.caubet@psi.ch
A3: psi01 | B3: Krack Matthias | C3: 7302 | D3: 0 | E3: ='[1]Sorted Original'!E3/2+1000 -> 81000 | F3: 11 | G3: 0.25 | H3: 0.25 | I3: 0.25 | J3: 0.25 | K3: =E3*G3 -> 20250 | L3: =E3*H3 -> 20250 | M3: =E3*I3 -> 20250 | N3: =E3*J3 -> 20250 | O3: matthias.krack@psi.ch
A4: psi02 | B4: Clifford Ivor David | C4: 4100 | D4: 0 | E4: ='[1]Sorted Original'!E4/2+1000 -> 51000 | F4: 6 | G4: 0.25 | H4: 0.25 | I4: 0.25 | J4: 0.25 | K4: =E4*G4 -> 12750 | L4: =E4*H4 -> 12750 | M4: =E4*I4 -> 12750 | N4: =E4*J4 -> 12750 | O4: ivor.clifford@psi.ch
A5: psi03 | B5: Mantzaras Ioannis | C5: 7103 | D5: 1 | E5: ='[1]Sorted Original'!E5/2+1000 -> 11000 | F5: 2 | G5: 0.3 | H5: 0.25 | I5: 0.25 | J5: 0.2 | K5: =E5*G5 -> 3300 | L5: =E5*H5 -> 2750 | M5: =E5*I5 -> 2750 | N5: =E5*J5 -> 2200 | O5: ioannis.mantzaras@psi.ch
A6: psi04 | B6: Deupi i Corral Xavier | C6: 7202 | D6: 1 | E6: ='[1]Sorted Original'!E6/2+1000 -> 101000 | F6: 10 | G6: 0.35 | H6: 0.35 | I6: 0.2 | J6: 0.1 | K6: =E6*G6 -> 35350 | L6: =E6*H6 -> 35350 | M6: =E6*I6 -> 20200 | N6: =E6*J6 -> 10100 | O6: xavier.deupi@psi.ch
A7: psi05 | B7: Sato Yohei | C7: 7103 | D7: 0 | E7: ='[1]Sorted Original'!E7/2+1000 -> 16000 | F7: 2 | G7: 0.17 | H7: 0.17 | I7: 0.33 | J7: 0.33 | K7: =E7*G7 -> 2720 | L7: =E7*H7 -> 2720 | M7: =E7*I7 -> 5280 | N7: =E7*J7 -> 5280 | O7: yohei.sato@psi.ch
A8: psi06 | B8: Jung Thomas Andreas | C8: 6215 | D8: 0 | E8: ='[1]Sorted Original'!E8/2+1000 -> 51000 | F8: 2 | G8: 0.2 | H8: 0.3 | I8: 0.25 | J8: 0.25 | K8: =E8*G8 -> 10200 | L8: =E8*H8 -> 15300 | M8: =E8*I8 -> 12750 | N8: =E8*J8 -> 12750 | O8: thomas.jung@psi.ch
A9: psi07 | B9: Adelmann Andreas | C9: 7100 | D9: 0 | E9: ='[1]Sorted Original'!E9/2+1000 -> 26000 | F9: 10 | G9: 0.25 | H9: 0.25 | I9: 0.25 | J9: 0.25 | K9: =E9*G9 -> 6500 | L9: =E9*H9 -> 6500 | M9: =E9*I9 -> 6500 | N9: =E9*J9 -> 6500 | O9: andreas.adelmann@psi.ch
A10: psi08 | B10: Schüler Michael | C10: 7300 | D10: 0 | E10: ='[1]Sorted Original'!E10/2 -> 15000 | F10: 2 | G10: 0 | H10: 0.25 | I10: 0.5 | J10: 0.25 | K10: =E10*G10 -> 0 | L10: =E10*H10 -> 3750 | M10: =E10*I10 -> 7500 | N10: =E10*J10 -> 3750 | O10: michael.schueler@psi.ch
A11: psi09 | B11: Chen Ying | C11: 5503 | D11: 0 | E11: =10000+1000 -> 11000 | F11: 10 | G11: 0.25 | H11: 0.25 | I11: 0.25 | J11: 0.25 | K11: =E11*G11 -> 2750 | L11: =E11*H11 -> 2750 | M11: =E11*I11 -> 2750 | N11: =E11*J11 -> 2750 | O11: ying.chen@psi.ch
A12: psi10 | B12: Schüler Michael | C12: 7202 | D12: 0 | E12: ='[1]Sorted Original'!E12/2+1000 -> 16000 | F12: 1 | G12: 0.25 | H12: 0.25 | I12: 0.25 | J12: 0.25 | K12: =E12*G12 -> 4000 | L12: =E12*H12 -> 4000 | M12: =E12*I12 -> 4000 | N12: =E12*J12 -> 4000 | O12: michael.schueler@psi.ch
A13: psi11 | B13: Perret Gregory | C13: 4100 | D13: 0 | E13: ='[1]Sorted Original'!E13/2 -> 0 | F13: 2 | G13: 0.25 | H13: 0.25 | I13: 0.25 | J13: 0.25 | K13: =E13*G13 -> 0 | L13: =E13*H13 -> 0 | M13: =E13*I13 -> 0 | N13: =E13*J13 -> 0 | O13: gregory.perret@psi.ch
A14: psi13 | B14: Prasianakis Nikolaos | C14: 4403 | D14: 0 | E14: =10000 -> 10000 | F14: 2 | G14: 0.25 | H14: 0.25 | I14: 0.25 | J14: 0.25 | K14: =E14*G14 -> 2500 | L14: =E14*H14 -> 2500 | M14: =E14*I14 -> 2500 | N14: =E14*J14 -> 2500 | O14: nikolaos.prasianakis@psi.ch
A15: psi14 | B15: Reiche Sven | C15: 8120 | D15: 0 | E15: ='[1]Sorted Original'!E15/2+1000 -> 11000 | F15: 2 | G15: 0.25 | H15: 0.25 | I15: 0.25 | J15: 0.25 | K15: =E15*G15 -> 2750 | L15: =E15*H15 -> 2750 | M15: =E15*I15 -> 2750 | N15: =E15*J15 -> 2750 | O15: sven.reiche@psi.ch
A16: psi15 | B16: Marzari Nicola | C16: 7300 | D16: 0 | E16: ='[1]Sorted Original'!E16/2+1000 -> 71000 | F16: 5 | G16: 0.25 | H16: 0.25 | I16: 0.25 | J16: 0.25 | K16: =E16*G16 -> 17750 | L16: =E16*H16 -> 17750 | M16: =E16*I16 -> 17750 | N16: =E16*J16 -> 17750 | O16: nicola.marzari@psi.ch
A17: psi16 | B17: Läuchli Herzig Andreas Martin | C17: 7201 | D17: 0 | E17: ='[1]Sorted Original'!E17/2+1000 -> 11000 | F17: 2 | G17: 0.33 | H17: 0.33 | I17: 0.33 | J17: 0 | K17: =E17*G17 -> 3630 | L17: =E17*H17 -> 3630 | M17: =E17*I17 -> 3630 | N17: =E17*J17 -> 0 | O17: andreas.laeuchli@psi.ch
A18: psi17 | B18: Owusu Jerry Peprah | C18: 4400 | D18: 1 | E18: ='[1]Sorted Original'!E18/2+1000 -> 16000 | F18: 2 | G18: 1 | H18: 0 | I18: 0 | J18: 0 | K18: =E18*G18 -> 16000 | L18: =E18*H18 -> 0 | M18: =E18*I18 -> 0 | N18: =E18*J18 -> 0 | O18: jerry-peprah.owusu@psi.ch
A19: psigpu | B19: Caubet Serrabou Marc | C19: 7905 | D19: 1 | E19: =10000+2250 -> 12250 | F19: 0 | G19: 0.25 | H19: 0.25 | I19: 0.25 | J19: 0.25 | K19: =E19*G19 -> 3062.5 | L19: =E19*H19 -> 3062.5 | M19: =E19*I19 -> 3062.5 | N19: =E19*J19 -> 3062.5 | O19: marc.caubet@psi.ch
A20: SUM REQ RESOURCES | E20: =SUM(E1:E19) -> 522500 | F20: =SUM(F1:F19) -> 80 | K20: =SUM(K1:K19) -> 146575 | L20: =SUM(L1:L19) -> 138875 | M20: =SUM(M1:M19) -> 127485 | N20: =SUM(N1:N19) -> 109455
B22: Available resources per year | E22: 522499 | F22: 80 | K22: =$E22/4 -> 130624.75 | L22: =$E22/4 -> 130624.75 | M22: =$E22/4 -> 130624.75 | N22: =$E22/4 -> 130624.75
B23: Oversubscription factor | E23: =E20/E22 -> 1.000001914 | F23: =F20/F22 -> 1 | K23: =K20/K22 -> 1.122107411 | L23: =L20/L22 -> 1.063159929 | M23: =M20/M22 -> 0.9759635904 | N23: =N20/N22 -> 0.8379346181
